[Event "Titled Tuesday Blitz August 22 Late 2023"]
[White "Kushko, Dmitriy"]
[Black "Willy, Stephen"]
[WhiteFideId "14162261"]
[BlackFideId "30981468"]
[WhiteElo "2766"]
[BlackElo "2594"]
[Result "1-0"]
[Round "8"]
[TimeControl "180+1"]
[Date "2023.08.22"]
[WhiteClock "0:00:10"]
[BlackClock "0:00:10"]
[Board "30"]

1. Nf3 {[%clk 0:03:00]}  d5 {[%clk 0:02:59]} 2. g3 {[%clk 0:03:01]}  Bg4 {[%clk 0:02:58]} 3. Bg2 {[%clk 0:03:01]}  Nd7 {[%clk 0:02:58]} 4. h3 {[%clk 0:03:00]}  Bxf3 {[%clk 0:02:56]} 5. Bxf3 {[%clk 0:03:01]}  Ngf6 {[%clk 0:02:54]} 6. O-O {[%clk 0:03:00]}  e5 {[%clk 0:02:50]} 7. d3 {[%clk 0:03:00]}  Bd6 {[%clk 0:02:40]} 8. Nc3 {[%clk 0:03:00]}  c6 {[%clk 0:02:40]} 9. e4 {[%clk 0:02:59]}  Nb6 {[%clk 0:02:28]} 10. a4 {[%clk 0:02:56]}  a5 {[%clk 0:02:26]} 11. Bg5 {[%clk 0:02:39]}  Be7 {[%clk 0:02:16]} 12. exd5 {[%clk 0:02:14]}  Nfxd5 {[%clk 0:02:16]} 13. Bxe7 {[%clk 0:02:14]}  Qxe7 {[%clk 0:02:16]} 14. Re1 {[%clk 0:02:09]}  O-O {[%clk 0:02:03]} 15. d4 {[%clk 0:01:46]}  Qb4 {[%clk 0:01:54]} 16. Nxd5 {[%clk 0:01:43]}  Nxd5 {[%clk 0:01:55]} 17. Bxd5 {[%clk 0:01:39]}  cxd5 {[%clk 0:01:55]} 18. dxe5 {[%clk 0:01:09]}  Qxb2 {[%clk 0:01:45]} 19. Qxd5 {[%clk 0:01:09]}  Rfd8 {[%clk 0:01:36]} 20. Qb3 {[%clk 0:00:30]}  Qxb3 {[%clk 0:01:30]} 21. cxb3 {[%clk 0:00:30]}  Rd3 {[%clk 0:01:30]} 22. Rab1 {[%clk 0:00:22]}  Rd4 {[%clk 0:01:24]} 23. Red1 {[%clk 0:00:17]}  Rad8 {[%clk 0:01:19]} 24. Rxd4 {[%clk 0:00:16]}  Rxd4 {[%clk 0:01:20]} 25. Rc1 {[%clk 0:00:16]}  h6 {[%clk 0:01:04]} 26. Rc8+ {[%clk 0:00:08]}  Kh7 {[%clk 0:01:04]} 27. Rc7 {[%clk 0:00:09]}  Rb4 {[%clk 0:00:52]} 28. Rxf7 {[%clk 0:00:09]}  Rxb3 {[%clk 0:00:53]} 29. Kg2 {[%clk 0:00:08]}  Rb4 {[%clk 0:00:46]} 30. f4 {[%clk 0:00:07]}  Rxa4 {[%clk 0:00:38]} 31. Rxb7 {[%clk 0:00:05]}  Kg6 {[%clk 0:00:34]} 32. g4 {[%clk 0:00:04]}  Rxf4 {[%clk 0:00:34]} 33. Rb6+ {[%clk 0:00:04]}  Kf7 {[%clk 0:00:32]} 34. Ra6 {[%clk 0:00:04]}  a4 {[%clk 0:00:33]} 35. Kg3 {[%clk 0:00:04]}  Re4 {[%clk 0:00:33]} 36. Ra7+ {[%clk 0:00:04]}  Ke6 {[%clk 0:00:24]} 37. Rxg7 {[%clk 0:00:04]}  Kxe5 {[%clk 0:00:22]} 38. Rg6 {[%clk 0:00:04]}  a3 {[%clk 0:00:19]} 39. Ra6 {[%clk 0:00:04]}  Re3+ {[%clk 0:00:20]} 40. Kh4 {[%clk 0:00:04]}  Kd4 {[%clk 0:00:20]} 41. Rxh6 {[%clk 0:00:03]}  Kc3 {[%clk 0:00:17]} 42. Ra6 {[%clk 0:00:03]}  Kb2 {[%clk 0:00:18]} 43. g5 {[%clk 0:00:04]}  a2 {[%clk 0:00:18]} 44. Rxa2+ {[%clk 0:00:03]}  Kxa2 {[%clk 0:00:18]} 45. g6 {[%clk 0:00:04]}  Kb3 {[%clk 0:00:18]} 46. Kg4 {[%clk 0:00:02]}  Kc4 {[%clk 0:00:17]} 47. h4 {[%clk 0:00:02]}  Kd5 {[%clk 0:00:17]} 48. g7 {[%clk 0:00:02]}  Re8 {[%clk 0:00:16]} 49. Kg5 {[%clk 0:00:02]}  Ke6 {[%clk 0:00:16]} 50. Kg6 {[%clk 0:00:03]}  Ra8 {[%clk 0:00:12]} 51. h5 {[%clk 0:00:03]}  Ke7 {[%clk 0:00:07]} 52. h6 {[%clk 0:00:03]}  Ra6+ {[%clk 0:00:05]} 53. Kh7 {[%clk 0:00:03]}  Ke6 {[%clk 0:00:02]} 54. g8=Q+ {[%clk 0:00:04]}  Kf5 {[%clk 0:00:02]} 55. Qf7+ {[%clk 0:00:04]}  Ke5 {[%clk 0:00:02]} 56. Qg7+ {[%clk 0:00:04]}  Rf6 {[%clk 0:00:02]} 57. Kg8 {[%clk 0:00:03]}  Ke6 {[%clk 0:00:03]} 58. Qxf6+ {[%clk 0:00:04]}  Kxf6 {[%clk 0:00:03]} 59. h7 {[%clk 0:00:05]}  Kf5 {[%clk 0:00:04]} 60. h8=Q {[%clk 0:00:06]}  Kf4 {[%clk 0:00:05]} 61. Qg7 {[%clk 0:00:06]}  Kf3 {[%clk 0:00:06]} 62. Kf7 {[%clk 0:00:07]}  Ke2 {[%clk 0:00:06]} 63. Qg3 {[%clk 0:00:07]}  Kd1 {[%clk 0:00:06]} 64. Kf6 {[%clk 0:00:08]}  Kc2 {[%clk 0:00:07]} 65. Kf5 {[%clk 0:00:09]}  Kd1 {[%clk 0:00:08]} 66. Ke4 {[%clk 0:00:10]}  Kc1 {[%clk 0:00:09]} 67. Qf2 {[%clk 0:00:10]}  Kb1 {[%clk 0:00:09]} 68. Kd3 {[%clk 0:00:10]}  Kc1 {[%clk 0:00:10]} 69. Qc2# {[%clk 0:00:10]} 1-0


[Site "https://www.chess.com"]

[Event "Titled Tuesday Blitz August 22 Late 2023"]
[White "Geivondian, Arman"]
[Black "Wieczorek, Oskar"]
[WhiteFideId "24102032"]
[BlackFideId "1133950"]
[WhiteElo "2539"]
[BlackElo "2752"]
[Result "1-0"]
[Round "8"]
[TimeControl "180+1"]
[Date "2023.08.22"]
[WhiteClock "0:00:46"]
[BlackClock "0:00:04"]
[Board "32"]

1. e4 {[%clk 0:03:00]}  c5 {[%clk 0:02:59]} 2. Nf3 {[%clk 0:03:00]}  d6 {[%clk 0:02:59]} 3. Bb5+ {[%clk 0:03:01]}  Nc6 {[%clk 0:02:58]} 4. Bxc6+ {[%clk 0:03:01]}  bxc6 {[%clk 0:02:59]} 5. O-O {[%clk 0:03:02]}  e5 {[%clk 0:02:58]} 6. c3 {[%clk 0:03:00]}  Nf6 {[%clk 0:02:58]} 7. Re1 {[%clk 0:02:59]}  Bg4 {[%clk 0:02:54]} 8. d3 {[%clk 0:02:58]}  Be7 {[%clk 0:02:53]} 9. Bg5 {[%clk 0:02:57]}  h6 {[%clk 0:02:49]} 10. Bxf6 {[%clk 0:02:57]}  Bxf6 {[%clk 0:02:50]} 11. h3 {[%clk 0:02:57]}  Be6 {[%clk 0:02:45]} 12. d4 {[%clk 0:02:53]}  cxd4 {[%clk 0:02:42]} 13. cxd4 {[%clk 0:02:54]}  O-O {[%clk 0:02:41]} 14. dxe5 {[%clk 0:02:54]}  dxe5 {[%clk 0:02:42]} 15. Qc1 {[%clk 0:02:54]}  Qa5 {[%clk 0:02:32]} 16. Nc3 {[%clk 0:02:53]}  Rfd8 {[%clk 0:02:28]} 17. Qc2 {[%clk 0:02:51]}  Be7 {[%clk 0:02:22]} 18. Rad1 {[%clk 0:02:49]}  Bb4 {[%clk 0:02:19]} 19. a3 {[%clk 0:02:47]}  Bxc3 {[%clk 0:02:18]} 20. Qxc3 {[%clk 0:02:48]}  Qxc3 {[%clk 0:02:18]} 21. bxc3 {[%clk 0:02:49]}  f6 {[%clk 0:02:16]} 22. Rxd8+ {[%clk 0:02:37]}  Rxd8 {[%clk 0:02:15]} 23. Rb1 {[%clk 0:02:37]}  Rd3 {[%clk 0:02:11]} 24. Rb7 {[%clk 0:02:27]}  a5 {[%clk 0:01:51]} 25. Ra7 {[%clk 0:02:27]}  Rxc3 {[%clk 0:01:50]} 26. Rxa5 {[%clk 0:02:27]}  c5 {[%clk 0:01:50]} 27. Nh4 {[%clk 0:02:25]}  Bb3 {[%clk 0:01:26]} 28. Nf5 {[%clk 0:02:16]}  c4 {[%clk 0:01:22]} 29. Ra7 {[%clk 0:02:11]}  Rc1+ {[%clk 0:01:22]} 30. Kh2 {[%clk 0:02:11]}  c3 {[%clk 0:01:16]} 31. Rxg7+ {[%clk 0:01:49]}  Kf8 {[%clk 0:01:16]} 32. Rb7 {[%clk 0:01:28]}  c2 {[%clk 0:00:59]} 33. Rxb3 {[%clk 0:01:27]}  Rh1+ {[%clk 0:00:48]} 34. Kxh1 {[%clk 0:01:27]}  c1=Q+ {[%clk 0:00:49]} 35. Kh2 {[%clk 0:01:26]}  Qf4+ {[%clk 0:00:50]} 36. Ng3 {[%clk 0:01:26]}  h5 {[%clk 0:00:50]} 37. Rf3 {[%clk 0:01:27]}  Qg5 {[%clk 0:00:48]} 38. Rf5 {[%clk 0:01:26]}  Qg6 {[%clk 0:00:48]} 39. Nxh5 {[%clk 0:01:26]}  Ke7 {[%clk 0:00:46]} 40. Nxf6 {[%clk 0:01:25]}  Ke6 {[%clk 0:00:47]} 41. Ng4 {[%clk 0:01:24]}  Qg7 {[%clk 0:00:44]} 42. a4 {[%clk 0:01:19]}  Qa7 {[%clk 0:00:41]} 43. a5 {[%clk 0:01:17]}  Qd4 {[%clk 0:00:35]} 44. f3 {[%clk 0:01:16]}  Qd2 {[%clk 0:00:33]} 45. a6 {[%clk 0:01:12]}  Qa2 {[%clk 0:00:33]} 46. h4 {[%clk 0:01:10]}  Ke7 {[%clk 0:00:31]} 47. Rf6 {[%clk 0:01:09]}  Qa5 {[%clk 0:00:25]} 48. h5 {[%clk 0:01:08]}  Qe1 {[%clk 0:00:25]} 49. g3 {[%clk 0:00:46]}  Qe2+ {[%clk 0:00:20]} 50. Kh3 {[%clk 0:00:46]}  Qf1+ {[%clk 0:00:20]} 51. Kh4 {[%clk 0:00:46]}  Qh1+ {[%clk 0:00:07]} 52. Kg5 {[%clk 0:00:47]}  Qh3 {[%clk 0:00:07]} 53. h6 {[%clk 0:00:46]}  Qxg3 {[%clk 0:00:04]} 54. h7 {[%clk 0:00:46]} 1-0


[Site "https://www.chess.com"]

[Event "Titled Tuesday Blitz August 22 Late 2023"]
[White "Martinez Ramirez, Lennis"]
[Black "Kuzmicz, Krystian"]
[WhiteFideId "3509079"]
[BlackFideId "1119125"]
[WhiteElo "2739"]
[BlackElo "2736"]
[Result "0-1"]
[Round "8"]
[TimeControl "180+1"]
[Date "2023.08.22"]
[WhiteClock "0:00:00"]
[BlackClock "0:00:36"]
[Board "33"]

1. Nf3 {[%clk 0:03:00]}  g6 {[%clk 0:02:59]} 2. d4 {[%clk 0:03:00]}  Bg7 {[%clk 0:02:59]} 3. c4 {[%clk 0:03:00]}  c5 {[%clk 0:03:00]} 4. d5 {[%clk 0:02:59]}  d6 {[%clk 0:03:00]} 5. e4 {[%clk 0:03:00]}  e6 {[%clk 0:03:00]} 6. dxe6 {[%clk 0:02:54]}  Bxe6 {[%clk 0:02:59]} 7. h3 {[%clk 0:02:52]}  Nc6 {[%clk 0:02:59]} 8. Bd3 {[%clk 0:02:51]}  Nge7 {[%clk 0:02:58]} 9. O-O {[%clk 0:02:51]}  O-O {[%clk 0:02:58]} 10. Nc3 {[%clk 0:02:48]}  h6 {[%clk 0:02:55]} 11. Bf4 {[%clk 0:02:46]}  g5 {[%clk 0:02:55]} 12. Bh2 {[%clk 0:02:46]}  Ng6 {[%clk 0:02:55]} 13. Qb3 {[%clk 0:02:34]}  Rb8 {[%clk 0:02:15]} 14. Rad1 {[%clk 0:02:33]}  a6 {[%clk 0:02:15]} 15. Be2 {[%clk 0:02:32]}  Nd4 {[%clk 0:02:11]} 16. Nxd4 {[%clk 0:02:32]}  cxd4 {[%clk 0:02:11]} 17. Nd5 {[%clk 0:02:30]}  Bxd5 {[%clk 0:02:11]} 18. cxd5 {[%clk 0:02:29]}  Be5 {[%clk 0:02:10]} 19. g3 {[%clk 0:02:27]}  Bg7 {[%clk 0:01:46]} 20. Bg4 {[%clk 0:02:27]}  Ne5 {[%clk 0:01:38]} 21. Bf5 {[%clk 0:02:27]}  b5 {[%clk 0:01:38]} 22. f4 {[%clk 0:02:25]}  Nc4 {[%clk 0:01:38]} 23. Rd3 {[%clk 0:02:21]}  Ne3 {[%clk 0:01:36]} 24. Rxe3 {[%clk 0:02:04]}  dxe3 {[%clk 0:01:35]} 25. Qxe3 {[%clk 0:02:02]}  Bxb2 {[%clk 0:01:22]} 26. Qe2 {[%clk 0:02:00]}  Bg7 {[%clk 0:01:19]} 27. Kg2 {[%clk 0:01:51]}  Qe7 {[%clk 0:01:09]} 28. Rc1 {[%clk 0:01:43]}  a5 {[%clk 0:01:08]} 29. Qh5 {[%clk 0:01:42]}  b4 {[%clk 0:01:06]} 30. h4 {[%clk 0:01:43]}  gxf4 {[%clk 0:01:01]} 31. gxf4 {[%clk 0:01:42]}  a4 {[%clk 0:01:01]} 32. Kh3 {[%clk 0:01:41]}  b3 {[%clk 0:00:56]} 33. axb3 {[%clk 0:01:14]}  Rxb3+ {[%clk 0:00:49]} 34. Bg3 {[%clk 0:00:29]}  a3 {[%clk 0:00:46]} 35. e5 {[%clk 0:00:26]}  dxe5 {[%clk 0:00:43]} 36. Rc4 {[%clk 0:00:12]}  a2 {[%clk 0:00:38]} 37. fxe5 {[%clk 0:00:03]}  Rxg3+ {[%clk 0:00:37]} 38. Kxg3 {[%clk 0:00:02]}  Qxe5+ {[%clk 0:00:36]} 39. Kh3 {[%clk 0:00:00]}  a1=Q {[%clk 0:00:36]} 0-1


[Site "https://www.chess.com"]

[Event "Titled Tuesday Blitz August 22 Late 2023"]
[White "Shohat, Yotam"]
[Black "Holt, Conrad"]
[WhiteFideId "2813955"]
[BlackFideId "2034387"]
[WhiteElo "2471"]
[BlackElo "2915"]
[Result "0-1"]
[Round "8"]
[TimeControl "180+1"]
[Date "2023.08.22"]
[WhiteClock "0:00:34"]
[BlackClock "0:01:12"]
[Board "35"]

1. e4 {[%clk 0:03:00]}  e6 {[%clk 0:03:00]} 2. d4 {[%clk 0:03:00]}  d5 {[%clk 0:03:00]} 3. e5 {[%clk 0:03:01]}  c5 {[%clk 0:03:01]} 4. c3 {[%clk 0:03:00]}  Nc6 {[%clk 0:03:00]} 5. Nf3 {[%clk 0:03:00]}  Bd7 {[%clk 0:02:58]} 6. Be2 {[%clk 0:03:00]}  f6 {[%clk 0:02:57]} 7. O-O {[%clk 0:02:58]}  fxe5 {[%clk 0:02:55]} 8. Nxe5 {[%clk 0:02:59]}  Nf6 {[%clk 0:02:53]} 9. Bh5+ {[%clk 0:02:53]}  g6 {[%clk 0:02:52]} 10. Bf3 {[%clk 0:02:46]}  cxd4 {[%clk 0:02:25]} 11. cxd4 {[%clk 0:02:46]}  Qb6 {[%clk 0:02:25]} 12. Nxc6 {[%clk 0:02:43]}  bxc6 {[%clk 0:02:24]} 13. Re1 {[%clk 0:02:41]}  Bd6 {[%clk 0:02:22]} 14. Bg5 {[%clk 0:02:35]}  O-O {[%clk 0:02:20]} 15. Qd2 {[%clk 0:02:33]}  c5 {[%clk 0:02:15]} 16. dxc5 {[%clk 0:02:32]}  Bxc5 {[%clk 0:02:15]} 17. Nc3 {[%clk 0:02:32]}  Ng4 {[%clk 0:02:00]} 18. Nxd5 {[%clk 0:02:03]}  Bxf2+ {[%clk 0:01:54]} 19. Kh1 {[%clk 0:02:03]}  Bxe1 {[%clk 0:01:53]} 20. Nxb6 {[%clk 0:02:02]}  Bxd2 {[%clk 0:01:53]} 21. Nxd7 {[%clk 0:02:01]}  Nf2+ {[%clk 0:01:26]} 22. Kg1 {[%clk 0:02:00]}  Rxf3 {[%clk 0:01:26]} 23. Bxd2 {[%clk 0:01:31]}  Rf5 {[%clk 0:01:24]} 24. Be3 {[%clk 0:01:20]}  Ng4 {[%clk 0:01:21]} 25. Re1 {[%clk 0:00:51]}  Rd8 {[%clk 0:01:15]} 26. Nc5 {[%clk 0:00:35]}  Nxe3 {[%clk 0:01:13]} 27. Nxe6 {[%clk 0:00:34]}  Rd2 {[%clk 0:01:12]} 0-1


[Site "https://www.chess.com"]

[Event "Titled Tuesday Blitz August 22 Late 2023"]
[White "Durarbayli, Vasif"]
[Black "Tologon tegin, Semetei"]
[WhiteFideId "13402935"]
[BlackFideId "13800574"]
[WhiteElo "2859"]
[BlackElo "2612"]
[Result "1-0"]
[Round "8"]
[TimeControl "180+1"]
[Date "2023.08.22"]
[WhiteClock "0:00:04"]
[BlackClock "0:00:01"]
[Board "37"]

1. e4 {[%clk 0:03:00]}  e5 {[%clk 0:02:59]} 2. Nf3 {[%clk 0:02:58]}  Nc6 {[%clk 0:02:59]} 3. Bb5 {[%clk 0:02:58]}  a6 {[%clk 0:02:59]} 4. Ba4 {[%clk 0:02:59]}  Nf6 {[%clk 0:02:59]} 5. d3 {[%clk 0:02:59]}  Bc5 {[%clk 0:02:53]} 6. c3 {[%clk 0:02:56]}  d6 {[%clk 0:02:44]} 7. d4 {[%clk 0:02:48]}  exd4 {[%clk 0:02:43]} 8. cxd4 {[%clk 0:02:49]}  Bb4+ {[%clk 0:02:43]} 9. Bd2 {[%clk 0:02:49]}  b5 {[%clk 0:02:40]} 10. Bc2 {[%clk 0:02:49]}  O-O {[%clk 0:02:36]} 11. O-O {[%clk 0:02:45]}  Bg4 {[%clk 0:02:33]} 12. d5 {[%clk 0:02:36]}  Bxd2 {[%clk 0:02:30]} 13. Nbxd2 {[%clk 0:02:37]}  Nd4 {[%clk 0:02:26]} 14. h3 {[%clk 0:02:31]}  Bh5 {[%clk 0:02:24]} 15. Re1 {[%clk 0:02:24]}  Re8 {[%clk 0:02:23]} 16. Rc1 {[%clk 0:02:08]}  Rc8 {[%clk 0:02:22]} 17. Bd3 {[%clk 0:02:01]}  c5 {[%clk 0:02:13]} 18. dxc6 {[%clk 0:02:01]}  Rxc6 {[%clk 0:02:13]} 19. Rxc6 {[%clk 0:02:01]}  Nxc6 {[%clk 0:02:12]} 20. Qc2 {[%clk 0:01:49]}  Ne5 {[%clk 0:02:08]} 21. Nxe5 {[%clk 0:01:49]}  dxe5 {[%clk 0:02:08]} 22. Nb3 {[%clk 0:01:48]}  Bg6 {[%clk 0:02:02]} 23. f3 {[%clk 0:01:41]}  Qd6 {[%clk 0:01:52]} 24. Bf1 {[%clk 0:01:38]}  Rd8 {[%clk 0:01:49]} 25. Kh2 {[%clk 0:01:37]}  h5 {[%clk 0:01:43]} 26. Nc5 {[%clk 0:01:34]}  Rc8 {[%clk 0:01:32]} 27. b4 {[%clk 0:01:34]}  Nd7 {[%clk 0:01:18]} 28. Rd1 {[%clk 0:01:25]}  Qe7 {[%clk 0:01:18]} 29. Rc1 {[%clk 0:01:13]}  h4 {[%clk 0:01:12]} 30. Qf2 {[%clk 0:01:11]}  Nxc5 {[%clk 0:01:04]} 31. bxc5 {[%clk 0:01:06]}  Rc6 {[%clk 0:00:51]} 32. Be2 {[%clk 0:01:05]}  Qg5 {[%clk 0:00:48]} 33. Rc2 {[%clk 0:00:59]}  Qf4+ {[%clk 0:00:45]} 34. Kg1 {[%clk 0:00:59]}  f5 {[%clk 0:00:43]} 35. Bd3 {[%clk 0:00:28]}  Kf8 {[%clk 0:00:22]} 36. exf5 {[%clk 0:00:20]}  Bxf5 {[%clk 0:00:21]} 37. Bxf5 {[%clk 0:00:21]}  Qxf5 {[%clk 0:00:21]} 38. Qd2 {[%clk 0:00:16]}  Ke7 {[%clk 0:00:19]} 39. Rc1 {[%clk 0:00:14]}  Qf4 {[%clk 0:00:17]} 40. Qc2 {[%clk 0:00:09]}  Qd4+ {[%clk 0:00:14]} 41. Kh1 {[%clk 0:00:10]}  b4 {[%clk 0:00:10]} 42. Rd1 {[%clk 0:00:06]}  Qxc5 {[%clk 0:00:09]} 43. Qd2 {[%clk 0:00:06]}  Rd6 {[%clk 0:00:08]} 44. Qg5+ {[%clk 0:00:06]}  Kf7 {[%clk 0:00:09]} 45. Re1 {[%clk 0:00:05]}  Re6 {[%clk 0:00:07]} 46. Qxh4 {[%clk 0:00:05]}  Qc3 {[%clk 0:00:07]} 47. Qe4 {[%clk 0:00:05]}  a5 {[%clk 0:00:06]} 48. Kh2 {[%clk 0:00:05]}  a4 {[%clk 0:00:06]} 49. Re3 {[%clk 0:00:06]}  Qc5 {[%clk 0:00:06]} 50. Qf5+ {[%clk 0:00:05]}  Rf6 {[%clk 0:00:05]} 51. Qd7+ {[%clk 0:00:03]}  Kg6 {[%clk 0:00:03]} 52. Re4 {[%clk 0:00:03]}  Kh6 {[%clk 0:00:03]} 53. Rh4+ {[%clk 0:00:02]}  Kg6 {[%clk 0:00:03]} 54. Rg4+ {[%clk 0:00:03]}  Kh5 {[%clk 0:00:03]} 55. Qxg7 {[%clk 0:00:04]}  Rf5 {[%clk 0:00:01]} 56. Qg6# {[%clk 0:00:04]} 1-0


[Site "https://www.chess.com"]

[Event "Titled Tuesday Blitz August 22 Late 2023"]
[White "GaiozNigalidze"]
[Black "Roebers, Eline"]
[BlackFideId "1058401"]
[WhiteElo "2701"]
[BlackElo "2578"]
[Result "0-1"]
[Round "8"]
[TimeControl "180+1"]
[Date "2023.08.22"]
[WhiteClock "0:00:00"]
[BlackClock "0:00:11"]
[Board "40"]

1. d4 {[%clk 0:03:00]}  f5 {[%clk 0:02:59]} 2. Nc3 {[%clk 0:03:00]}  Nf6 {[%clk 0:02:58]} 3. Bg5 {[%clk 0:03:00]}  d5 {[%clk 0:02:58]} 4. e3 {[%clk 0:03:00]}  e6 {[%clk 0:02:57]} 5. h4 {[%clk 0:02:56]}  c5 {[%clk 0:02:51]} 6. Bb5+ {[%clk 0:02:55]}  Nc6 {[%clk 0:02:50]} 7. Nf3 {[%clk 0:02:52]}  Bd6 {[%clk 0:02:39]} 8. a3 {[%clk 0:02:48]}  O-O {[%clk 0:02:37]} 9. dxc5 {[%clk 0:02:16]}  Bxc5 {[%clk 0:02:36]} 10. Nd4 {[%clk 0:02:05]}  Bd7 {[%clk 0:02:28]} 11. Nxf5 {[%clk 0:01:40]}  h6 {[%clk 0:02:17]} 12. Nd4 {[%clk 0:01:14]}  hxg5 {[%clk 0:02:12]} 13. hxg5 {[%clk 0:01:14]}  Nxd4 {[%clk 0:01:58]} 14. exd4 {[%clk 0:01:14]}  Bxb5 {[%clk 0:01:52]} 15. dxc5 {[%clk 0:01:08]}  Bc6 {[%clk 0:00:59]} 16. gxf6 {[%clk 0:00:35]}  Qxf6 {[%clk 0:01:00]} 17. O-O {[%clk 0:00:24]}  d4 {[%clk 0:00:44]} 18. Ne2 {[%clk 0:00:24]}  e5 {[%clk 0:00:44]} 19. Ng3 {[%clk 0:00:23]}  e4 {[%clk 0:00:41]} 20. Qh5 {[%clk 0:00:20]}  Rae8 {[%clk 0:00:36]} 21. Rae1 {[%clk 0:00:11]}  Re5 {[%clk 0:00:35]} 22. Qh3 {[%clk 0:00:08]}  Qe7 {[%clk 0:00:31]} 23. Rd1 {[%clk 0:00:05]}  Qxc5 {[%clk 0:00:30]} 24. Rfe1 {[%clk 0:00:06]}  d3 {[%clk 0:00:28]} 25. Rd2 {[%clk 0:00:05]}  dxc2 {[%clk 0:00:27]} 26. Rc1 {[%clk 0:00:05]}  e3 {[%clk 0:00:27]} 27. Rdxc2 {[%clk 0:00:06]}  exf2+ {[%clk 0:00:26]} 28. Kh2 {[%clk 0:00:06]}  Qd5 {[%clk 0:00:20]} 29. Rf1 {[%clk 0:00:04]}  Qd4 {[%clk 0:00:15]} 30. Nh5 {[%clk 0:00:00]}  Bd7 {[%clk 0:00:11]} 0-1


[Site "https://www.chess.com"]

[Event "Titled Tuesday Blitz August 22 Late 2023"]
[White "Estrada Nieto, Julian"]
[Black "Cuenca Jimenez, Jose Fernando"]
[WhiteFideId "5101018"]
[BlackFideId "2255570"]
[WhiteElo "2543"]
[BlackElo "2685"]
[Result "1/2-1/2"]
[Round "8"]
[TimeControl "180+1"]
[Date "2023.08.22"]
[WhiteClock "0:00:07"]
[BlackClock "0:00:11"]
[Board "41"]

1. e4 {[%clk 0:03:00]}  c5 {[%clk 0:02:59]} 2. Nf3 {[%clk 0:03:00]}  Nc6 {[%clk 0:02:59]} 3. Bb5 {[%clk 0:03:00]}  e6 {[%clk 0:02:59]} 4. O-O {[%clk 0:02:59]}  Nge7 {[%clk 0:02:59]} 5. Re1 {[%clk 0:02:59]}  Nd4 {[%clk 0:02:59]} 6. Nxd4 {[%clk 0:02:54]}  cxd4 {[%clk 0:03:00]} 7. d3 {[%clk 0:02:51]}  a6 {[%clk 0:02:59]} 8. Ba4 {[%clk 0:02:50]}  b5 {[%clk 0:02:57]} 9. Bb3 {[%clk 0:02:50]}  Nc6 {[%clk 0:02:57]} 10. Nd2 {[%clk 0:02:50]}  Bc5 {[%clk 0:02:53]} 11. Nf3 {[%clk 0:02:50]}  h6 {[%clk 0:02:44]} 12. c3 {[%clk 0:02:45]}  O-O {[%clk 0:02:41]} 13. Qe2 {[%clk 0:02:30]}  d6 {[%clk 0:02:36]} 14. Bd2 {[%clk 0:02:29]}  Bb7 {[%clk 0:02:28]} 15. Rac1 {[%clk 0:02:28]}  Rc8 {[%clk 0:02:19]} 16. cxd4 {[%clk 0:02:23]}  Nxd4 {[%clk 0:02:19]} 17. Nxd4 {[%clk 0:02:23]}  Bxd4 {[%clk 0:02:20]} 18. Rxc8 {[%clk 0:02:20]}  Qxc8 {[%clk 0:02:17]} 19. Rc1 {[%clk 0:02:18]}  Qb8 {[%clk 0:02:06]} 20. Be3 {[%clk 0:02:16]}  Bxe3 {[%clk 0:02:05]} 21. Qxe3 {[%clk 0:02:16]}  Rc8 {[%clk 0:02:06]} 22. h3 {[%clk 0:02:06]}  Rxc1+ {[%clk 0:02:01]} 23. Qxc1 {[%clk 0:02:06]}  Qd8 {[%clk 0:01:58]} 24. Qc3 {[%clk 0:01:53]}  Qb6 {[%clk 0:01:50]} 25. Kf1 {[%clk 0:01:48]}  Qc5 {[%clk 0:01:48]} 26. f3 {[%clk 0:01:42]}  b4 {[%clk 0:01:21]} 27. Qxc5 {[%clk 0:01:26]}  dxc5 {[%clk 0:01:22]} 28. Ke2 {[%clk 0:01:22]}  e5 {[%clk 0:01:19]} 29. Ke3 {[%clk 0:01:20]}  Kf8 {[%clk 0:01:19]} 30. f4 {[%clk 0:01:19]}  f6 {[%clk 0:01:20]} 31. Bc4 {[%clk 0:01:10]}  a5 {[%clk 0:01:19]} 32. Bb5 {[%clk 0:01:05]}  Ke7 {[%clk 0:01:18]} 33. g3 {[%clk 0:01:00]}  Bc8 {[%clk 0:01:17]} 34. h4 {[%clk 0:00:59]}  Bg4 {[%clk 0:01:17]} 35. Ba4 {[%clk 0:00:55]}  Kd6 {[%clk 0:01:15]} 36. Kd2 {[%clk 0:00:53]}  Be6 {[%clk 0:01:12]} 37. b3 {[%clk 0:00:48]}  exf4 {[%clk 0:00:56]} 38. gxf4 {[%clk 0:00:47]}  g5 {[%clk 0:00:57]} 39. hxg5 {[%clk 0:00:43]}  fxg5 {[%clk 0:00:52]} 40. e5+ {[%clk 0:00:19]}  Kd5 {[%clk 0:00:46]} 41. Ke3 {[%clk 0:00:18]}  Bf5 {[%clk 0:00:21]} 42. Bb5 {[%clk 0:00:16]}  Ke6 {[%clk 0:00:11]} 43. Bc4+ {[%clk 0:00:14]}  Ke7 {[%clk 0:00:11]} 44. fxg5 {[%clk 0:00:09]}  hxg5 {[%clk 0:00:12]} 45. d4 {[%clk 0:00:09]}  cxd4+ {[%clk 0:00:11]} 46. Kxd4 {[%clk 0:00:10]}  g4 {[%clk 0:00:11]} 47. Ke3 {[%clk 0:00:07]}  Be6 {[%clk 0:00:09]} 48. Be2 {[%clk 0:00:04]}  Bf5 {[%clk 0:00:04]} 49. Kf4 {[%clk 0:00:04]}  Bb1 {[%clk 0:00:05]} 50. Kxg4 {[%clk 0:00:03]}  Bxa2 {[%clk 0:00:05]} 51. Bd1 {[%clk 0:00:03]}  Ke6 {[%clk 0:00:05]} 52. Kf4 {[%clk 0:00:03]}  Bb1 {[%clk 0:00:05]} 53. Bg4+ {[%clk 0:00:03]}  Kd5 {[%clk 0:00:05]} 54. Bd1 {[%clk 0:00:04]}  Ke6 {[%clk 0:00:04]} 55. Bg4+ {[%clk 0:00:04]}  Kd5 {[%clk 0:00:03]} 56. Bd1 {[%clk 0:00:05]}  Bd3 {[%clk 0:00:03]} 57. Bf3+ {[%clk 0:00:04]}  Ke6 {[%clk 0:00:02]} 58. Bg4+ {[%clk 0:00:04]}  Kd5 {[%clk 0:00:02]} 59. Bd1 {[%clk 0:00:05]}  Kd4 {[%clk 0:00:02]} 60. e6 {[%clk 0:00:05]}  Bg6 {[%clk 0:00:03]} 61. e7 {[%clk 0:00:05]}  Kc3 {[%clk 0:00:03]} 62. Kg5 {[%clk 0:00:05]}  Be8 {[%clk 0:00:02]} 63. Kf6 {[%clk 0:00:05]}  Kd2 {[%clk 0:00:03]} 64. Bg4 {[%clk 0:00:05]}  Kc2 {[%clk 0:00:03]} 65. Be6 {[%clk 0:00:05]}  Kc3 {[%clk 0:00:04]} 66. Kg7 {[%clk 0:00:05]}  Kb2 {[%clk 0:00:04]} 67. Kf8 {[%clk 0:00:06]}  Bc6 {[%clk 0:00:04]} 68. e8=Q {[%clk 0:00:05]}  Bxe8 {[%clk 0:00:04]} 69. Kxe8 {[%clk 0:00:05]}  Ka3 {[%clk 0:00:05]} 70. Bd5 {[%clk 0:00:05]}  a4 {[%clk 0:00:05]} 71. bxa4 {[%clk 0:00:05]}  Kxa4 {[%clk 0:00:06]} 72. Bc4 {[%clk 0:00:05]}  Ka3 {[%clk 0:00:06]} 73. Bd5 {[%clk 0:00:06]}  Kb2 {[%clk 0:00:07]} 74. Be6 {[%clk 0:00:06]}  Kc3 {[%clk 0:00:08]} 75. Bf7 {[%clk 0:00:06]}  Kd4 {[%clk 0:00:08]} 76. Bb3 {[%clk 0:00:06]}  Ke5 {[%clk 0:00:09]} 77. Bg8 {[%clk 0:00:07]}  Kd4 {[%clk 0:00:10]} 78. Be6 {[%clk 0:00:06]}  Kc3 {[%clk 0:00:11]} 79. Bf7 {[%clk 0:00:07]}  b3 {[%clk 0:00:11]} 80. Bxb3 {[%clk 0:00:07]} 1/2-1/2


[Site "https://www.chess.com"]